[Event "*** SCC Grand Prix: Titled Tuesday Blitz"]
[Site "Chess.com"]
[Date "2020.07.07"]
[Round "7"]
[White "superchess02"]
[Black "maximnovik"]
[Result "1-0"]
[WhiteElo "2666"]
[BlackElo "2508"]
[TimeControl "180+1"]
[EndTime "11:18:41 PDT"]
[Termination "superchess02 won on time"]

1. e4 {[%clk 0:03:00.9]} 1... c6 {[%clk 0:02:50.1]} 2. d4 {[%clk 0:03:00.4]}
2... d5 {[%clk 0:02:49.6]} 3. e5 {[%clk 0:03:00.8]} 3... Bf5 {[%clk 0:02:49.2]}
4. Nf3 {[%clk 0:03:01.2]} 4... e6 {[%clk 0:02:49.7]} 5. h3 {[%clk 0:03:00.6]}
5... Ne7 {[%clk 0:02:48.5]} 6. g4 {[%clk 0:03:00.6]} 6... Be4 {[%clk 0:02:47.5]}
7. Bg2 {[%clk 0:03:00.2]} 7... c5 {[%clk 0:02:47.2]} 8. Nbd2 {[%clk 0:03:00.2]}
8... Nec6 {[%clk 0:02:45.5]} 9. Nxe4 {[%clk 0:02:53]} 9... dxe4 {[%clk
0:02:44.7]} 10. Ng5 {[%clk 0:02:53.6]} 10... Qxd4 {[%clk 0:02:36.1]} 11. Qxd4
{[%clk 0:02:53.2]} 11... cxd4 {[%clk 0:02:21]} 12. Bxe4 {[%clk 0:02:53.5]} 12...
Nd7 {[%clk 0:02:17.4]} 13. f4 {[%clk 0:02:53.2]} 13... Nc5 {[%clk 0:02:11.7]}
14. Bxc6+ {[%clk 0:02:50.6]} 14... bxc6 {[%clk 0:02:11]} 15. Nf3 {[%clk
0:02:32.4]} 15... O-O-O {[%clk 0:02:08.8]} 16. Ke2 {[%clk 0:02:27.9]} 16... h5
{[%clk 0:02:04]} 17. Bd2 {[%clk 0:02:19.5]} 17... Be7 {[%clk 0:02:00.6]} 18. Bb4
{[%clk 0:02:11.8]} 18... Rd5 {[%clk 0:01:40]} 19. Bxc5 {[%clk 0:02:10.3]} 19...
Bxc5 {[%clk 0:01:34.3]} 20. Kd3 {[%clk 0:02:10.2]} 20... Be7 {[%clk 0:01:32.9]}
21. a4 {[%clk 0:02:06.5]} 21... c5 {[%clk 0:01:28.5]} 22. b3 {[%clk 0:02:00.6]}
22... Kc7 {[%clk 0:01:27.2]} 23. Rag1 {[%clk 0:01:57.3]} 23... Kc6 {[%clk
0:01:22.3]} 24. gxh5 {[%clk 0:01:53.2]} 24... Bf8 {[%clk 0:01:09.3]} 25. Rg5
{[%clk 0:01:45.9]} 25... Rh7 {[%clk 0:01:05]} 26. Rhg1 {[%clk 0:01:42.9]} 26...
Rd7 {[%clk 0:01:03.6]} 27. f5 {[%clk 0:01:39.3]} 27... Kd5 {[%clk 0:01:01.5]}
28. f6 {[%clk 0:01:22.5]} 28... gxf6 {[%clk 0:00:47.7]} 29. exf6+ {[%clk
0:01:23.4]} 29... Kd6 {[%clk 0:00:47.6]} 30. Ne5 {[%clk 0:01:22.6]} 30... Rb7
{[%clk 0:00:35.1]} 31. Rg7 {[%clk 0:01:20.1]} 31... Rxg7 {[%clk 0:00:14.7]} 32.
fxg7 {[%clk 0:01:18.7]} 32... Bxg7 {[%clk 0:00:13.6]} 33. Nc4+ {[%clk
0:01:18.6]} 33... Kd5 {[%clk 0:00:13.8]} 34. Rxg7 {[%clk 0:01:17.8]} 34... e5
{[%clk 0:00:13.8]} 35. h6 {[%clk 0:01:18.2]} 35... e4+ {[%clk 0:00:13.2]} 36.
Ke2 {[%clk 0:01:17.8]} 36... Rb8 {[%clk 0:00:12.5]} 37. h7 {[%clk 0:01:16.6]}
37... Rh8 {[%clk 0:00:12.3]} 38. Rxf7 {[%clk 0:01:16.8]} 38... e3 {[%clk
0:00:10.9]} 39. Rxa7 {[%clk 0:01:15.8]} 1-0

[Event "*** SCC Grand Prix: Titled Tuesday Blitz"]
[Site "Chess.com"]
[Date "2020.07.07"]
[Round "7"]
[White "random_mango"]
[Black "Onegust"]
[Result "1-0"]
[WhiteElo "2413"]
[BlackElo "2600"]
[TimeControl "180+1"]
[EndTime "11:18:42 PDT"]
[Termination "random_mango won by resignation"]

1. e4 {[%clk 0:03:00.9]} 1... c5 {[%clk 0:02:59.5]} 2. Nf3 {[%clk 0:03:00.8]}
2... d6 {[%clk 0:02:59.9]} 3. d4 {[%clk 0:03:00.3]} 3... cxd4 {[%clk 0:03:00.8]}
4. Qxd4 {[%clk 0:03:01.1]} 4... a6 {[%clk 0:02:59.9]} 5. h3 {[%clk 0:03:00.7]}
5... Nc6 {[%clk 0:02:59.5]} 6. Qe3 {[%clk 0:03:01.3]} 6... g6 {[%clk 0:02:59.6]}
7. c4 {[%clk 0:03:01.7]} 7... Bg7 {[%clk 0:02:59.7]} 8. Nc3 {[%clk 0:03:02]}
8... Nf6 {[%clk 0:02:59.5]} 9. Be2 {[%clk 0:03:01.9]} 9... O-O {[%clk
0:02:59.8]} 10. O-O {[%clk 0:03:01.6]} 10... Nd7 {[%clk 0:02:45.2]} 11. Rb1
{[%clk 0:03:00.8]} 11... Qb6 {[%clk 0:02:23.1]} 12. Nd5 {[%clk 0:02:52.3]} 12...
Qd8 {[%clk 0:02:13.3]} 13. Rd1 {[%clk 0:02:24.8]} 13... b6 {[%clk 0:01:34.8]}
14. b4 {[%clk 0:02:18.6]} 14... Bb7 {[%clk 0:01:31.5]} 15. Bb2 {[%clk
0:02:17.8]} 15... e6 {[%clk 0:01:03.4]} 16. Bxg7 {[%clk 0:01:52.2]} 16... Kxg7
{[%clk 0:01:04.3]} 17. Nc3 {[%clk 0:01:51.5]} 17... Nf6 {[%clk 0:00:43.8]} 18.
e5 {[%clk 0:01:47.5]} 18... Nd7 {[%clk 0:00:36.9]} 19. Rxd6 {[%clk 0:01:46.6]}
19... Qc7 {[%clk 0:00:34.1]} 20. Rbd1 {[%clk 0:01:39.8]} 20... Rfd8 {[%clk
0:00:34.4]} 21. b5 {[%clk 0:01:39.6]} 21... Ndxe5 {[%clk 0:00:25.6]} 22. bxc6
{[%clk 0:01:26.6]} 22... Nxf3+ {[%clk 0:00:20.2]} 23. Bxf3 {[%clk 0:01:26]}
23... Rxd6 {[%clk 0:00:20.8]} 24. Rxd6 {[%clk 0:01:25.9]} 24... Qxd6 {[%clk
0:00:17.8]} 25. cxb7 {[%clk 0:01:26.8]} 25... Rb8 {[%clk 0:00:18.7]} 26. h4
{[%clk 0:01:25.4]} 26... h5 {[%clk 0:00:14.1]} 27. Ne4 {[%clk 0:01:24.4]} 27...
Qc7 {[%clk 0:00:05.6]} 28. Ng5 {[%clk 0:01:17.9]} 28... Qxc4 {[%clk 0:00:02.7]}
29. Qe5+ {[%clk 0:01:16.3]} 29... Kh6 {[%clk 0:00:02.5]} 30. Nxf7+ {[%clk
0:01:12.8]} 30... Kh7 {[%clk 0:00:02.8]} 31. Ng5+ {[%clk 0:01:13.2]} 31... Kh6
{[%clk 0:00:03]} 32. Qxb8 {[%clk 0:01:13.6]} 32... Qxh4 {[%clk 0:00:02.3]} 33.
Qf8+ {[%clk 0:01:05.9]} 1-0

[Event "*** SCC Grand Prix: Titled Tuesday Blitz"]
[Site "Chess.com"]
[Date "2020.07.07"]
[Round "7"]
[White "Varshi_chess"]
[Black "bratkoo"]
[Result "0-1"]
[WhiteElo "2247"]
[BlackElo "2439"]
[TimeControl "180+1"]
[EndTime "11:18:42 PDT"]
[Termination "bratkoo won by resignation"]

1. e4 {[%clk 0:03:00.9]} 1... e6 {[%clk 0:03:00.9]} 2. d4 {[%clk 0:03:00]} 2...
d5 {[%clk 0:03:01.5]} 3. e5 {[%clk 0:02:59.3]} 3... c5 {[%clk 0:03:00.2]} 4. c3
{[%clk 0:02:59.9]} 4... Qb6 {[%clk 0:03:00.5]} 5. Nf3 {[%clk 0:02:59.6]} 5...
Bd7 {[%clk 0:03:01.1]} 6. a3 {[%clk 0:02:59.6]} 6... a5 {[%clk 0:03:01.2]} 7.
Be2 {[%clk 0:02:58.7]} 7... a4 {[%clk 0:03:01.4]} 8. O-O {[%clk 0:02:58.1]} 8...
Bb5 {[%clk 0:03:01.7]} 9. Nbd2 {[%clk 0:02:48.3]} 9... Bxe2 {[%clk 0:03:00.8]}
10. Qxe2 {[%clk 0:02:48.2]} 10... c4 {[%clk 0:03:01.1]} 11. Re1 {[%clk
0:02:47.5]} 11... Nc6 {[%clk 0:03:01]} 12. Nf1 {[%clk 0:02:47.4]} 12... h6
{[%clk 0:02:50.6]} 13. Be3 {[%clk 0:02:47.2]} 13... O-O-O {[%clk 0:02:49.1]} 14.
Qc2 {[%clk 0:02:45]} 14... Qb5 {[%clk 0:02:48.5]} 15. N3d2 {[%clk 0:02:40.8]}
15... Nge7 {[%clk 0:02:47.6]} 16. f4 {[%clk 0:02:37.7]} 16... Nf5 {[%clk
0:02:47.6]} 17. Bf2 {[%clk 0:02:37.1]} 17... g5 {[%clk 0:02:41.2]} 18. g4 {[%clk
0:02:29.5]} 18... Nfe7 {[%clk 0:02:41.1]} 19. f5 {[%clk 0:02:28.3]} 19... h5
{[%clk 0:02:41.4]} 20. h3 {[%clk 0:02:24.5]} 20... Na5 {[%clk 0:02:34.6]} 21.
Kg2 {[%clk 0:02:20.7]} 21... Nb3 {[%clk 0:02:31.7]} 22. Rad1 {[%clk 0:02:20.4]}
22... Qd7 {[%clk 0:02:30]} 23. Ne3 {[%clk 0:02:14.5]} 23... hxg4 {[%clk
0:02:24.9]} 24. hxg4 {[%clk 0:02:13]} 24... exf5 {[%clk 0:02:11.6]} 25. gxf5
{[%clk 0:02:01.4]} 25... f6 {[%clk 0:02:10.4]} 26. Nf3 {[%clk 0:01:44.3]} 26...
g4 {[%clk 0:02:02.2]} 27. Nh4 {[%clk 0:01:43.5]} 27... Nc6 {[%clk 0:01:57.6]}
28. e6 {[%clk 0:01:36]} 28... Qc7 {[%clk 0:01:49.5]} 29. Bg3 {[%clk 0:01:10.4]}
29... Bd6 {[%clk 0:01:49]} 30. Nxd5 {[%clk 0:01:10.3]} 30... Qa5 {[%clk
0:01:49.6]} 31. Ne3 {[%clk 0:00:59.8]} 31... Bxg3 {[%clk 0:01:47.3]} 32. Kxg3
{[%clk 0:00:59.8]} 32... Qc7+ {[%clk 0:01:48]} 33. Kg2 {[%clk 0:00:55.2]} 33...
Rxh4 {[%clk 0:01:48.1]} 34. Rh1 {[%clk 0:00:53.3]} 34... Rdh8 {[%clk 0:01:48.6]}
35. Rxh4 {[%clk 0:00:50.1]} 35... Rxh4 {[%clk 0:01:49.5]} 36. Rh1 {[%clk
0:00:49.9]} 36... Rxh1 {[%clk 0:01:49.8]} 37. Kxh1 {[%clk 0:00:49.9]} 37... Qg3
{[%clk 0:01:50.2]} 38. Qe2 {[%clk 0:00:47.6]} 38... Nc1 {[%clk 0:01:43.4]} 39.
Qxg4 {[%clk 0:00:20.2]} 39... Qxe3 {[%clk 0:01:36]} 40. Qg8+ {[%clk 0:00:10]}
40... Kc7 {[%clk 0:01:34.7]} 41. Qf7+ {[%clk 0:00:08.8]} 41... Kb6 {[%clk
0:01:34.3]} 42. Qxf6 {[%clk 0:00:07.8]} 42... Nd3 {[%clk 0:01:32.7]} 43. d5
{[%clk 0:00:06.3]} 43... Qh3+ {[%clk 0:01:29.7]} 44. Kg1 {[%clk 0:00:06.1]}
44... Qg3+ {[%clk 0:01:30.1]} 0-1

[Event "*** SCC Grand Prix: Titled Tuesday Blitz"]
[Site "Chess.com"]
[Date "2020.07.07"]
[Round "7"]
[White "Hippotaner"]
[Black "Fluffey"]
[Result "0-1"]
[WhiteElo "2312"]
[BlackElo "2459"]
[TimeControl "180+1"]
[EndTime "11:18:47 PDT"]
[Termination "Fluffey won by resignation"]

1. e4 {[%clk 0:03:00.9]} 1... c5 {[%clk 0:02:59.6]} 2. Nf3 {[%clk 0:03:00.8]}
2... Nc6 {[%clk 0:02:59.5]} 3. Bb5 {[%clk 0:03:00.1]} 3... Nd4 {[%clk
0:02:59.4]} 4. Bc4 {[%clk 0:02:44.7]} 4... e6 {[%clk 0:02:55.5]} 5. c3 {[%clk
0:02:42.7]} 5... Nxf3+ {[%clk 0:02:55]} 6. Qxf3 {[%clk 0:02:43.6]} 6... b6
{[%clk 0:02:33.5]} 7. O-O {[%clk 0:02:42.1]} 7... Bb7 {[%clk 0:02:32.8]} 8. d3
{[%clk 0:02:40.7]} 8... Nf6 {[%clk 0:02:25.5]} 9. Bf4 {[%clk 0:02:39.5]} 9...
Be7 {[%clk 0:02:16.2]} 10. Qg3 {[%clk 0:02:34.9]} 10... Nh5 {[%clk 0:02:13.7]}
11. Qf3 {[%clk 0:02:31.8]} 11... Nxf4 {[%clk 0:02:12.6]} 12. Qxf4 {[%clk
0:02:32.7]} 12... O-O {[%clk 0:02:11.7]} 13. Nd2 {[%clk 0:02:32.1]} 13... d5
{[%clk 0:02:11]} 14. exd5 {[%clk 0:02:29.3]} 14... exd5 {[%clk 0:02:10.3]} 15.
Bb3 {[%clk 0:02:27.7]} 15... Bg5 {[%clk 0:02:09.7]} 16. Qg3 {[%clk 0:02:05.7]}
16... Bxd2 {[%clk 0:02:07.5]} 17. h4 {[%clk 0:02:05.8]} 17... Qf6 {[%clk
0:01:59.6]} 18. Rad1 {[%clk 0:02:04.5]} 18... Bf4 {[%clk 0:01:58.1]} 19. Qf3
{[%clk 0:02:04.8]} 19... Rad8 {[%clk 0:01:45.1]} 20. g3 {[%clk 0:02:04.8]} 20...
Be5 {[%clk 0:01:43]} 21. Qg2 {[%clk 0:02:05.2]} 21... Rd7 {[%clk 0:01:40.2]} 22.
f4 {[%clk 0:02:05.3]} 22... Bb8 {[%clk 0:01:38.2]} 23. d4 {[%clk 0:02:03.4]}
23... c4 {[%clk 0:01:35.5]} 24. Bc2 {[%clk 0:02:03.3]} 24... Re7 {[%clk
0:01:35.1]} 25. Rd2 {[%clk 0:01:50]} 25... Rfe8 {[%clk 0:01:33.5]} 26. Rdf2
{[%clk 0:01:49.4]} 26... Re1 {[%clk 0:01:31.7]} 27. Rxe1 {[%clk 0:01:48.3]}
27... Rxe1+ {[%clk 0:01:32.6]} 28. Kh2 {[%clk 0:01:47.5]} 28... h5 {[%clk
0:01:29.8]} 29. Re2 {[%clk 0:01:47.4]} 29... Rxe2 {[%clk 0:01:26.3]} 30. Qxe2
{[%clk 0:01:48.3]} 30... Qe6 {[%clk 0:01:19.1]} 31. Qxh5 {[%clk 0:01:46.4]}
31... g6 {[%clk 0:01:16]} 32. Qf3 {[%clk 0:01:46.3]} 32... Bc8 {[%clk
0:01:15.8]} 33. b3 {[%clk 0:01:40.7]} 33... Qh3+ {[%clk 0:01:02.2]} 34. Kg1
{[%clk 0:01:40.3]} 34... Bg4 {[%clk 0:01:02.7]} 35. Qf2 {[%clk 0:01:36.3]} 35...
b5 {[%clk 0:00:56.6]} 36. bxc4 {[%clk 0:01:34.3]} 36... bxc4 {[%clk 0:00:57.5]}
37. Ba4 {[%clk 0:01:34.4]} 37... Bd6 {[%clk 0:00:56.7]} 38. Bc6 {[%clk
0:01:33.9]} 38... Be6 {[%clk 0:00:55.2]} 39. Qf3 {[%clk 0:01:21]} 39... Qf5
{[%clk 0:00:52.3]} 40. Qe2 {[%clk 0:01:05.6]} 40... Ba3 {[%clk 0:00:46.7]} 41.
Ba4 {[%clk 0:01:00.9]} 41... Qb1+ {[%clk 0:00:43.1]} 42. Kg2 {[%clk 0:00:57.9]}
42... Qb2 {[%clk 0:00:41.7]} 43. Bc2 {[%clk 0:00:58]} 43... Qxc3 {[%clk
0:00:41.3]} 44. h5 {[%clk 0:00:58.3]} 44... Bc1 {[%clk 0:00:34.1]} 45. hxg6
{[%clk 0:00:55.8]} 45... Qd2 {[%clk 0:00:32.4]} 46. gxf7+ {[%clk 0:00:55.3]}
46... Kxf7 {[%clk 0:00:31.4]} 47. Bg6+ {[%clk 0:00:54.8]} 47... Kxg6 {[%clk
0:00:30.8]} 48. Qxd2 {[%clk 0:00:52.4]} 48... Bxd2 {[%clk 0:00:31.7]} 0-1

[Event "*** SCC Grand Prix: Titled Tuesday Blitz"]
[Site "Chess.com"]
[Date "2020.07.07"]
[Round "7"]
[White "mirochka"]
[Black "jonychess03"]
[Result "0-1"]
[WhiteElo "2132"]
[BlackElo "2316"]
[TimeControl "180+1"]
[EndTime "11:18:49 PDT"]
[Termination "jonychess03 won on time"]

1. e4 {[%clk 0:03:00.9]} 1... e6 {[%clk 0:02:59.5]} 2. Nf3 {[%clk 0:03:00]} 2...
d5 {[%clk 0:02:59.5]} 3. e5 {[%clk 0:03:00.5]} 3... c5 {[%clk 0:02:59.2]} 4. b4
{[%clk 0:03:01.1]} 4... cxb4 {[%clk 0:03:00.1]} 5. a3 {[%clk 0:03:01.4]} 5...
bxa3 {[%clk 0:03:01]} 6. d4 {[%clk 0:03:00.5]} 6... Nc6 {[%clk 0:03:01.1]} 7. c3
{[%clk 0:03:00.3]} 7... a6 {[%clk 0:02:59.9]} 8. Bd3 {[%clk 0:02:59.3]} 8... b5
{[%clk 0:02:57.7]} 9. O-O {[%clk 0:02:53]} 9... Bb7 {[%clk 0:02:43.6]} 10. Nxa3
{[%clk 0:02:50.1]} 10... Na5 {[%clk 0:02:40.4]} 11. Nxb5 {[%clk 0:02:20]} 11...
axb5 {[%clk 0:02:39.1]} 12. Bxb5+ {[%clk 0:02:20]} 12... Nc6 {[%clk 0:02:35.6]}
13. Rb1 {[%clk 0:01:57]} 13... Ne7 {[%clk 0:02:27.5]} 14. Bg5 {[%clk 0:01:39.8]}
14... h6 {[%clk 0:02:24.5]} 15. Bh4 {[%clk 0:01:36.5]} 15... g5 {[%clk
0:02:22.8]} 16. Nxg5 {[%clk 0:01:30.8]} 16... hxg5 {[%clk 0:02:22.4]} 17. Bxg5
{[%clk 0:01:31.3]} 17... Qd7 {[%clk 0:02:20.2]} 18. c4 {[%clk 0:01:11.2]} 18...
dxc4 {[%clk 0:02:18.8]} 19. Bxc4 {[%clk 0:01:09.4]} 19... Nd5 {[%clk 0:01:41]}
20. Bxd5 {[%clk 0:00:29.8]} 20... exd5 {[%clk 0:01:24.8]} 21. Bf6 {[%clk
0:00:27.6]} 21... Rg8 {[%clk 0:01:23.3]} 22. Qh5 {[%clk 0:00:24.2]} 22... Nxd4
{[%clk 0:01:11.9]} 23. Rfd1 {[%clk 0:00:23.2]} 23... Ne6 {[%clk 0:01:03.9]} 24.
g3 {[%clk 0:00:18.7]} 24... d4 {[%clk 0:00:59.6]} 25. Qe2 {[%clk 0:00:16.9]}
25... Qd5 {[%clk 0:00:55.1]} 26. f3 {[%clk 0:00:16.2]} 26... Qxf3 {[%clk
0:00:53]} 27. Qxf3 {[%clk 0:00:15.7]} 27... Bxf3 {[%clk 0:00:53.9]} 28. Rd2
{[%clk 0:00:14.4]} 28... Be7 {[%clk 0:00:45.3]} 29. Rb7 {[%clk 0:00:10.4]} 29...
Bxf6 {[%clk 0:00:44.7]} 30. exf6 {[%clk 0:00:11]} 30... Rg6 {[%clk 0:00:42.4]}
31. Rc2 {[%clk 0:00:08.1]} 31... d3 {[%clk 0:00:40]} 32. Rd2 {[%clk 0:00:06.5]}
32... Be2 {[%clk 0:00:40.2]} 0-1

[Event "*** SCC Grand Prix: Titled Tuesday Blitz"]
[Site "Chess.com"]
[Date "2020.07.07"]
[Round "7"]
[White "jonaszmb"]
[Black "Ural_bogatyr"]
[Result "1-0"]
[WhiteElo "2474"]
[BlackElo "2349"]
[TimeControl "180+1"]
[EndTime "11:18:51 PDT"]
[Termination "jonaszmb won by resignation"]

1. e4 {[%clk 0:03:00.9]} 1... e5 {[%clk 0:02:56.6]} 2. Nf3 {[%clk 0:03:00.7]}
2... Nc6 {[%clk 0:02:56.2]} 3. d4 {[%clk 0:03:00.5]} 3... exd4 {[%clk 0:02:56]}
4. Nxd4 {[%clk 0:03:01.4]} 4... Qf6 {[%clk 0:02:55.1]} 5. Nxc6 {[%clk
0:03:00.5]} 5... Bc5 {[%clk 0:02:54.3]} 6. Qf3 {[%clk 0:03:00.1]} 6... dxc6
{[%clk 0:02:45.4]} 7. Nc3 {[%clk 0:02:58.4]} 7... Be6 {[%clk 0:02:43.1]} 8. Bd3
{[%clk 0:02:56]} 8... O-O-O {[%clk 0:02:36.4]} 9. Be3 {[%clk 0:02:52.8]} 9...
Bb4 {[%clk 0:02:20.7]} 10. Qxf6 {[%clk 0:02:48.2]} 10... Nxf6 {[%clk 0:02:17]}
11. f3 {[%clk 0:02:48]} 11... Nd7 {[%clk 0:02:04.6]} 12. O-O-O {[%clk
0:02:45.1]} 12... Bxc3 {[%clk 0:01:58.8]} 13. bxc3 {[%clk 0:02:45.2]} 13... Bxa2
{[%clk 0:01:40.7]} 14. Bxa7 {[%clk 0:02:10.6]} 14... c5 {[%clk 0:01:08]} 15. c4
{[%clk 0:02:03.5]} 15... b6 {[%clk 0:01:07.4]} 16. Kb2 {[%clk 0:02:01.6]} 16...
Kb7 {[%clk 0:01:06.2]} 17. Bxb6 {[%clk 0:01:35.7]} 17... Ra8 {[%clk 0:00:52.5]}
18. Ra1 {[%clk 0:01:35.5]} 18... Nxb6 {[%clk 0:00:17.9]} 19. Rxa2 {[%clk
0:01:34.7]} 19... Rxa2+ {[%clk 0:00:07.6]} 20. Kxa2 {[%clk 0:01:35.6]} 20...
Ra8+ {[%clk 0:00:07.7]} 21. Kb3 {[%clk 0:01:32.5]} 21... Ra4 {[%clk 0:00:07.5]}
22. Kc3 {[%clk 0:01:30.5]} 22... Ra3+ {[%clk 0:00:06.2]} 23. Kd2 {[%clk
0:01:30.5]} 23... Ra4 {[%clk 0:00:04.8]} 24. Kc3 {[%clk 0:01:23.8]} 24... Ra3+
{[%clk 0:00:04.7]} 25. Kb2 {[%clk 0:01:23.6]} 25... Ra4 {[%clk 0:00:05.6]} 26.
Kb3 {[%clk 0:01:18.8]} 26... Rb4+ {[%clk 0:00:05.5]} 27. Kc3 {[%clk 0:01:19]}
27... Na4+ {[%clk 0:00:05.8]} 28. Kd2 {[%clk 0:01:18.7]} 28... Nb2 {[%clk
0:00:06.7]} 29. c3 {[%clk 0:01:02.7]} 29... Nxc4+ {[%clk 0:00:06.2]} 30. Bxc4
{[%clk 0:01:02.6]} 30... Rxc4 {[%clk 0:00:07.1]} 31. Ra1 {[%clk 0:01:01]} 31...
Kc6 {[%clk 0:00:03.4]} 32. Kd3 {[%clk 0:00:55]} 32... Kb5 {[%clk 0:00:03.5]} 33.
Rb1+ {[%clk 0:00:55.4]} 33... Rb4 {[%clk 0:00:04.2]} 34. cxb4 {[%clk 0:00:56]}
34... cxb4 {[%clk 0:00:05.1]} 35. Rc1 {[%clk 0:00:52.3]} 35... c5 {[%clk
0:00:06]} 36. e5 {[%clk 0:00:51.5]} 36... b3 {[%clk 0:00:06]} 37. Kc3 {[%clk
0:00:51.1]} 37... c4 {[%clk 0:00:05.3]} 38. Rd1 {[%clk 0:00:50.8]} 1-0

[Event "*** SCC Grand Prix: Titled Tuesday Blitz"]
[Site "Chess.com"]
[Date "2020.07.07"]
[Round "7"]
[White "MathiasWomacka"]
[Black "Ziachess74"]
[Result "1-0"]
[WhiteElo "2444"]
[BlackElo "2623"]
[TimeControl "180+1"]
[EndTime "11:18:52 PDT"]
[Termination "MathiasWomacka won by resignation"]

1. e4 {[%clk 0:03:00.9]} 1... c5 {[%clk 0:02:57.8]} 2. Nf3 {[%clk 0:03:00.2]}
2... Nc6 {[%clk 0:02:56.1]} 3. d4 {[%clk 0:03:00]} 3... cxd4 {[%clk 0:02:55.8]}
4. Nxd4 {[%clk 0:03:00.9]} 4... Nf6 {[%clk 0:02:56]} 5. Nc3 {[%clk 0:03:00.7]}
5... d6 {[%clk 0:02:56.2]} 6. Be2 {[%clk 0:02:59.7]} 6... e5 {[%clk 0:02:54.9]}
7. Nf3 {[%clk 0:02:59.5]} 7... h6 {[%clk 0:02:52.3]} 8. O-O {[%clk 0:02:58.9]}
8... Be7 {[%clk 0:02:53.2]} 9. Re1 {[%clk 0:02:59.1]} 9... O-O {[%clk
0:02:53.3]} 10. h3 {[%clk 0:02:59.4]} 10... a6 {[%clk 0:02:53.5]} 11. Bf1 {[%clk
0:02:55.1]} 11... Be6 {[%clk 0:02:48.2]} 12. Nd5 {[%clk 0:02:54]} 12... Bxd5
{[%clk 0:02:39.5]} 13. exd5 {[%clk 0:02:54.9]} 13... Nb8 {[%clk 0:02:26.2]} 14.
c4 {[%clk 0:02:52.7]} 14... Nbd7 {[%clk 0:02:25.2]} 15. Be3 {[%clk 0:02:37.5]}
15... a5 {[%clk 0:02:23.8]} 16. b3 {[%clk 0:02:35.9]} 16... Nh7 {[%clk
0:02:11.6]} 17. a3 {[%clk 0:02:34.6]} 17... f5 {[%clk 0:02:09.9]} 18. b4 {[%clk
0:02:31.7]} 18... Ng5 {[%clk 0:01:54.4]} 19. c5 {[%clk 0:02:14.1]} 19... axb4
{[%clk 0:01:51.3]} 20. c6 {[%clk 0:02:03.7]} 20... Nf6 {[%clk 0:01:22.5]} 21.
Bxg5 {[%clk 0:01:54.9]} 21... hxg5 {[%clk 0:01:20.6]} 22. Nxg5 {[%clk
0:01:54.9]} 22... Qb6 {[%clk 0:01:14.3]} 23. Qb3 {[%clk 0:01:28.4]} 23... Ne4
{[%clk 0:00:52.5]} 24. Nxe4 {[%clk 0:01:19.3]} 24... fxe4 {[%clk 0:00:53.4]} 25.
Qxb4 {[%clk 0:01:08]} 25... Qxf2+ {[%clk 0:00:51.8]} 26. Kh1 {[%clk 0:01:08.1]}
26... bxc6 {[%clk 0:00:38.9]} 27. Qxe4 {[%clk 0:00:57.2]} 27... Rf4 {[%clk
0:00:33.4]} 28. Qg6 {[%clk 0:00:52.8]} 28... Rf6 {[%clk 0:00:30.8]} 29. Qe4
{[%clk 0:00:47]} 29... c5 {[%clk 0:00:30.7]} 30. Bd3 {[%clk 0:00:45.8]} 30...
Rb8 {[%clk 0:00:24.1]} 31. Rf1 {[%clk 0:00:36.8]} 31... Qd4 {[%clk 0:00:21.4]}
32. Qh7+ {[%clk 0:00:36]} 32... Kf7 {[%clk 0:00:20.5]} 33. Bg6+ {[%clk
0:00:32.3]} 1-0

[Event "*** SCC Grand Prix: Titled Tuesday Blitz"]
[Site "Chess.com"]
[Date "2020.07.07"]
[Round "7"]
[White "NormWeinstein"]
[Black "annamaja"]
[Result "1-0"]
[WhiteElo "2451"]
[BlackElo "2266"]
[TimeControl "180+1"]
[EndTime "11:18:53 PDT"]
[Termination "NormWeinstein won on time"]

1. e4 {[%clk 0:03:00.8]} 1... e6 {[%clk 0:03:00.2]} 2. d4 {[%clk 0:02:59.7]}
2... d5 {[%clk 0:03:00.5]} 3. Nd2 {[%clk 0:03:00.2]} 3... Nf6 {[%clk 0:02:59.8]}
4. Bd3 {[%clk 0:03:00.6]} 4... c5 {[%clk 0:02:58.5]} 5. dxc5 {[%clk 0:03:01]}
5... dxe4 {[%clk 0:02:55]} 6. Nxe4 {[%clk 0:02:58.6]} 6... Nxe4 {[%clk
0:02:55.1]} 7. Bxe4 {[%clk 0:02:59]} 7... Qxd1+ {[%clk 0:02:55.2]} 8. Kxd1
{[%clk 0:02:59.4]} 8... Bxc5 {[%clk 0:02:56]} 9. Ke2 {[%clk 0:02:59.7]} 9... Nd7
{[%clk 0:02:52.5]} 10. Be3 {[%clk 0:02:59.5]} 10... Bxe3 {[%clk 0:02:51]} 11.
Kxe3 {[%clk 0:02:59.2]} 11... Nf6 {[%clk 0:02:51.7]} 12. Nf3 {[%clk 0:02:58.6]}
12... Nxe4 {[%clk 0:02:45.9]} 13. Kxe4 {[%clk 0:02:58.1]} 13... Bd7 {[%clk
0:02:46.1]} 14. Ne5 {[%clk 0:02:54.5]} 14... Rc8 {[%clk 0:02:41.6]} 15. c3
{[%clk 0:02:47.8]} 15... Bb5 {[%clk 0:02:37.8]} 16. Rhd1 {[%clk 0:02:35]} 16...
f6 {[%clk 0:02:26.6]} 17. a4 {[%clk 0:02:14.1]} 17... Ba6 {[%clk 0:02:01.7]} 18.
Nf3 {[%clk 0:02:10.6]} 18... Ke7 {[%clk 0:01:53.5]} 19. Nd4 {[%clk 0:01:52]}
19... b6 {[%clk 0:01:38.8]} 20. a5 {[%clk 0:01:46.5]} 20... Bb7+ {[%clk
0:01:28.5]} 21. Ke3 {[%clk 0:01:45.7]} 21... Rhd8 {[%clk 0:01:04.8]} 22. axb6
{[%clk 0:01:32.1]} 22... axb6 {[%clk 0:01:02.4]} 23. Ra7 {[%clk 0:01:27.2]}
23... Rd7 {[%clk 0:00:54.9]} 24. Nf5+ {[%clk 0:01:21.8]} 24... exf5 {[%clk
0:00:38.9]} 25. Rxd7+ {[%clk 0:01:20.7]} 25... Kxd7 {[%clk 0:00:37.7]} 26. Rxb7+
{[%clk 0:01:21.1]} 26... Kc6 {[%clk 0:00:29.9]} 27. Rxg7 {[%clk 0:01:20.2]}
27... Re8+ {[%clk 0:00:27.6]} 28. Kf3 {[%clk 0:01:14.7]} 28... b5 {[%clk
0:00:17.2]} 29. Rxh7 {[%clk 0:01:11.5]} 29... Kc5 {[%clk 0:00:17.6]} 30. Rc7+
{[%clk 0:01:08.3]} 30... Kd5 {[%clk 0:00:16.2]} 31. b3 {[%clk 0:01:00.2]} 31...
Re1 {[%clk 0:00:13.1]} 32. c4+ {[%clk 0:00:58.9]} 32... Kd6 {[%clk 0:00:11.1]}
33. Rb7 {[%clk 0:00:53]} 33... bxc4 {[%clk 0:00:06.3]} 34. bxc4 {[%clk
0:00:52.6]} 34... Rc1 {[%clk 0:00:06.6]} 35. Rb4 {[%clk 0:00:45.4]} 35... Rc2
{[%clk 0:00:01.9]} 36. Ra4 {[%clk 0:00:40.1]} 1-0